[Event "Blixt-SM 2025"]
[Site "Norrköping, Sweden"]
[Date "2025.09.26"]
[Round "7.9"]
[White "Bjorklund, Thomas"]
[Black "Bjorklund, Martin"]
[Result "1-0"]
[TimeControl "3 min + 2 sec/move"]
[WhiteElo "2103"]
[BlackElo "1947"]

1. e4 {[%clk 00:03:02]} {[%emt 00:21:15]} c5 {[%clk 00:03:02]} 2. c3 {[%clk
00:03:02]} {[%emt 00:00:01]} Nf6 {[%clk 00:03:02]} 3. e5 {[%clk 00:03:02]} Nd5
{[%clk 00:03:02]} 4. d4 {[%clk 00:03:02]} cxd4 {[%clk 00:03:02]} {[%emt
00:00:02]} 5. cxd4 {[%clk 00:03:02]} d6 {[%clk 00:03:02]} {[%emt 00:00:03]} 6.
exd6 Qxd6 {[%clk 00:03:02]} 7. Nc3 {[%clk 00:03:02]} {[%emt 00:00:01]} a6
{[%clk 00:03:02]} {[%emt 00:00:14]} 8. Nf3 {[%clk 00:03:02]} {[%emt 00:00:01]}
Nc6 {[%clk 00:03:02]} {[%emt 00:00:07]} 9. Bc4 {[%clk 00:03:02]} {[%emt
00:00:07]} Nb6 {[%clk 00:03:02]} {[%emt 00:00:20]} 10. Bb3 {[%clk 00:03:02]}
{[%emt 00:00:10]} Bg4 {[%clk 00:03:02]} {[%emt 00:00:11]} 11. Be3 {[%clk
00:03:02]} {[%emt 00:00:01]} e6 {[%clk 00:03:02]} {[%emt 00:00:03]} 12. O-O
{[%clk 00:03:02]} {[%emt 00:00:03]} Rd8 {[%clk 00:02:40]} {[%emt 00:00:40]} 13.
h3 {[%clk 00:02:31]} {[%emt 00:00:33]} Bh5 {[%clk 00:02:33]} {[%emt 00:00:07]}
14. Re1 {[%clk 00:02:13]} {[%emt 00:00:21]} Be7 {[%clk 00:02:26]} {[%emt
00:00:10]} 15. Ne4 {[%clk 00:01:58]} {[%emt 00:00:17]} Qd7 {[%clk 00:02:13]}
{[%emt 00:00:15]} 16. Ng3 {[%clk 00:01:55]} {[%emt 00:00:04]} Bxf3 {[%clk
00:01:58]} {[%emt 00:00:18]} 17. Qxf3 {[%clk 00:01:55]} {[%emt 00:00:01]} Nd5
{[%clk 00:01:59]} {[%emt 00:00:02]} 18. Rad1 {[%clk 00:01:42]} {[%emt
00:00:15]} O-O {[%clk 00:01:53]} {[%emt 00:00:08]} 19. Nh5 {[%clk 00:01:40]}
{[%emt 00:00:03]} Nxe3 {[%clk 00:01:13]} {[%emt 00:00:42]} 20. fxe3 {[%clk
00:01:40]} {[%emt 00:00:02]} Kh8 {[%clk 00:00:53]} {[%emt 00:00:23]} 21. Qg4
{[%clk 00:01:31]} {[%emt 00:00:10]} g6 {[%clk 00:00:48]} {[%emt 00:00:07]} 22.
Ng3 {[%clk 00:01:26]} {[%emt 00:00:08]} Bf6 {[%clk 00:00:35]} {[%emt 00:00:15]}
23. Rf1 {[%clk 00:01:24]} {[%emt 00:00:03]} Bg7 {[%clk 00:00:35]} {[%emt
00:00:02]} 24. Qf3 {[%clk 00:01:24]} {[%emt 00:00:02]} Ne7 {[%clk 00:00:27]}
{[%emt 00:00:10]} 25. Ne4 {[%clk 00:01:23]} {[%emt 00:00:04]} Nd5 {[%clk
00:00:26]} {[%emt 00:00:03]} 26. Nc5 {[%clk 00:01:22]} {[%emt 00:00:02]} Qc6
{[%clk 00:00:23]} {[%emt 00:00:05]} 27. Bxd5 {[%clk 00:01:21]} {[%emt
00:00:03]} exd5 {[%clk 00:00:19]} {[%emt 00:00:06]} 28. Rc1 {[%clk 00:01:16]}
{[%emt 00:00:08]} Qb5 {[%clk 00:00:19]} {[%emt 00:00:02]} 29. b3 {[%clk
00:01:17]} b6 {[%clk 00:00:20]} {[%emt 00:00:01]} 30. Na4 {[%clk 00:01:15]}
{[%emt 00:00:04]} Rde8 {[%clk 00:00:19]} {[%emt 00:00:03]} 31. Rc2 {[%clk
00:01:10]} {[%emt 00:00:06]} Bh6 {[%clk 00:00:20]} 32. Re1 {[%clk 00:01:10]}
{[%emt 00:00:02]} Qd3 {[%clk 00:00:17]} {[%emt 00:00:06]} 33. Rce2 {[%clk
00:01:07]} {[%emt 00:00:05]} b5 {[%clk 00:00:17]} {[%emt 00:00:01]} 34. Nb2
{[%clk 00:01:08]} {[%emt 00:00:02]} Qe4 {[%clk 00:00:17]} {[%emt 00:00:02]} 35.
Nd1 {[%clk 00:01:06]} {[%emt 00:00:04]} Re7 {[%clk 00:00:16]} {[%emt 00:00:02]}
36. Nc3 {[%clk 00:01:05]} {[%emt 00:00:03]} Qxf3 {[%clk 00:00:16]} {[%emt
00:00:02]} 37. gxf3 {[%clk 00:01:07]} Rfe8 {[%clk 00:00:17]} 38. Nxd5 {[%clk
00:01:07]} {[%emt 00:00:01]} Rd7 {[%clk 00:00:16]} {[%emt 00:00:03]} 39. e4
{[%clk 00:01:07]} {[%emt 00:00:02]} Kg7 {[%clk 00:00:15]} {[%emt 00:00:03]} 40.
Kg2 {[%clk 00:01:08]} {[%emt 00:00:01]} Rc8 {[%clk 00:00:16]} {[%emt 00:00:02]}
41. Rd1 {[%clk 00:01:07]} {[%emt 00:00:03]} f5 {[%clk 00:00:14]} {[%emt
00:00:04]} 42. Nb6 {[%clk 00:01:05]} {[%emt 00:00:04]} 1-0

[Event "Blixt-SM 2025"]
[Site "Norrköping, Sweden"]
[Date "2025.09.26"]
[Round "9.5"]
[White "Religa, Marek"]
[Black "Bjorklund, Thomas"]
[Result "1-0"]
[TimeControl "3 min + 2 sec/move"]
[WhiteElo "2207"]
[BlackElo "2103"]

1. e4 {[%clk 00:03:04]} {[%emt 00:08:05]} c5 {[%clk 00:03:00]} {[%emt
00:00:03]} 2. c4 {[%clk 00:03:04]} {[%emt 00:00:02]} Nc6 {[%clk 00:03:01]}
{[%emt 00:00:02]} 3. Nc3 {[%clk 00:03:06]} Nf6 {[%clk 00:03:01]} {[%emt
00:00:02]} 4. g3 {[%clk 00:03:07]} d6 {[%clk 00:03:03]} 5. Bg2 {[%clk
00:03:08]} g6 {[%clk 00:03:04]} 6. Nge2 {[%clk 00:03:10]} Bg7 {[%clk 00:03:05]}
7. a3 {[%clk 00:03:11]} {[%emt 00:00:02]} O-O {[%clk 00:03:05]} {[%emt
00:00:02]} 8. Rb1 {[%clk 00:03:13]} Rb8 {[%clk 00:03:06]} 9. b4 {[%clk
00:03:14]} {[%emt 00:00:01]} cxb4 {[%clk 00:03:06]} {[%emt 00:00:01]} 10. axb4
{[%clk 00:03:15]} a6 {[%clk 00:02:56]} {[%emt 00:00:13]} 11. b5 {[%clk
00:03:16]} axb5 {[%clk 00:02:56]} {[%emt 00:00:02]} 12. cxb5 {[%clk 00:03:17]}
{[%emt 00:00:01]} Ne5 {[%clk 00:02:55]} {[%emt 00:00:04]} 13. d4 {[%clk
00:03:09]} {[%emt 00:00:10]} Ned7 {[%clk 00:02:44]} {[%emt 00:00:12]} 14. O-O
{[%clk 00:03:06]} {[%emt 00:00:05]} e5 {[%clk 00:02:45]} {[%emt 00:00:02]} 15.
Ba3 {[%clk 00:03:05]} {[%emt 00:00:02]} exd4 {[%clk 00:02:41]} {[%emt
00:00:06]} 16. Qxd4 {[%clk 00:02:59]} {[%emt 00:00:09]} Ne8 {[%clk 00:02:24]}
{[%emt 00:00:19]} 17. Qb4 {[%clk 00:02:42]} {[%emt 00:00:19]} Nc5 {[%clk
00:02:14]} {[%emt 00:00:12]} 18. Rfd1 {[%clk 00:02:39]} {[%emt 00:00:04]} b6
{[%clk 00:02:15]} {[%emt 00:00:02]} 19. Nd5 {[%clk 00:02:34]} {[%emt 00:00:07]}
Be6 {[%clk 00:02:13]} {[%emt 00:00:04]} 20. Nef4 {[%clk 00:02:33]} {[%emt
00:00:03]} Be5 {[%clk 00:02:08]} {[%emt 00:00:07]} 21. Bb2 {[%clk 00:02:25]}
{[%emt 00:00:10]} Bxd5 {[%clk 00:01:49]} {[%emt 00:00:21]} 22. Nxd5 {[%clk
00:02:05]} {[%emt 00:00:21]} Nf6 {[%clk 00:01:43]} {[%emt 00:00:08]} 23. Ne3
{[%clk 00:01:30]} {[%emt 00:00:37]} Bxb2 {[%clk 00:01:36]} {[%emt 00:00:10]} 24.
Rxb2 {[%clk 00:01:31]} Qe7 {[%clk 00:01:34]} {[%emt 00:00:04]} 25. f3 {[%clk
00:01:29]} {[%emt 00:00:04]} Ra8 {[%clk 00:01:32]} {[%emt 00:00:04]} 26. Rbd2
{[%clk 00:01:22]} {[%emt 00:00:09]} Ra4 {[%clk 00:01:28]} {[%emt 00:00:06]} 27.
Qb2 {[%clk 00:01:21]} {[%emt 00:00:03]} Rfa8 {[%clk 00:01:11]} {[%emt
00:00:19]} 28. Rxd6 {[%clk 00:01:15]} {[%emt 00:00:08]} Ra2 {[%clk 00:01:12]}
29. Qxf6 {[%clk 00:01:13]} {[%emt 00:00:03]} Qxf6 {[%clk 00:01:12]} {[%emt
00:00:02]} 30. Rxf6 {[%clk 00:01:14]} Re2 {[%clk 00:01:10]} {[%emt 00:00:04]}
31. Nd5 {[%clk 00:00:54]} {[%emt 00:00:22]} Raa2 {[%clk 00:01:11]} {[%emt
00:00:02]} 32. Nf4 {[%clk 00:00:55]} {[%emt 00:00:01]} Reb2 {[%clk 00:01:06]}
{[%emt 00:00:06]} 33. h4 {[%clk 00:00:48]} {[%emt 00:00:09]} Ne6 {[%clk
00:01:07]} {[%emt 00:00:02]} 34. Bh3 {[%clk 00:00:33]} {[%emt 00:00:17]} Nxf4
{[%clk 00:00:52]} {[%emt 00:00:16]} 35. Rxf4 {[%clk 00:00:34]} Rxb5 {[%clk
00:00:53]} {[%emt 00:00:02]} 36. Rf6 {[%clk 00:00:23]} {[%emt 00:00:12]} Rbb2
{[%clk 00:00:53]} {[%emt 00:00:02]} 37. e5 {[%clk 00:00:21]} {[%emt 00:00:04]}
Kg7 {[%clk 00:00:53]} {[%emt 00:00:03]} 38. Rfd6 {[%clk 00:00:20]} {[%emt
00:00:02]} b5 {[%clk 00:00:54]} {[%emt 00:00:02]} 39. Rd7 {[%clk 00:00:22]} Kf8
{[%clk 00:00:49]} {[%emt 00:00:07]} 40. Rd8+ {[%clk 00:00:22]} {[%emt
00:00:02]} Kg7 {[%clk 00:00:48]} {[%emt 00:00:03]} 41. R8d7 {[%clk 00:00:22]}
{[%emt 00:00:02]} Kf8 {[%clk 00:00:49]} 42. e6 {[%clk 00:00:21]} {[%emt
00:00:04]} fxe6 {[%clk 00:00:49]} {[%emt 00:00:02]} 43. Rxh7 {[%clk 00:00:22]}
Ke8 {[%clk 00:00:46]} {[%emt 00:00:04]} 44. Re1 {[%clk 00:00:20]} {[%emt
00:00:04]} Re2 {[%clk 00:00:47]} {[%emt 00:00:02]} 45. Rxe2 {[%clk 00:00:17]}
{[%emt 00:00:04]} Rxe2 {[%clk 00:00:47]} {[%emt 00:00:02]} 46. Bf1 {[%clk
00:00:18]} {[%emt 00:00:01]} Re3 {[%clk 00:00:47]} {[%emt 00:00:03]} 47. Kf2
{[%clk 00:00:16]} {[%emt 00:00:05]} Rb3 {[%clk 00:00:48]} 48. Rb7 {[%clk
00:00:16]} b4 {[%clk 00:00:49]} 49. Bc4 {[%clk 00:00:14]} {[%emt 00:00:03]}
Rb2+ {[%clk 00:00:48]} {[%emt 00:00:03]} 50. Ke3 {[%clk 00:00:15]} e5 {[%clk
00:00:50]} {[%emt 00:00:01]} 51. Bf7+ {[%clk 00:00:15]} {[%emt 00:00:02]} Kd8
{[%clk 00:00:49]} {[%emt 00:00:03]} 52. Bxg6 {[%clk 00:00:16]} {[%emt
00:00:01]} Kc8 {[%clk 00:00:50]} 53. Rb5 {[%clk 00:00:17]} Kc7 {[%clk
00:00:49]} {[%emt 00:00:03]} 54. h5 {[%clk 00:00:17]} {[%emt 00:00:02]} Kd6
{[%clk 00:00:48]} {[%emt 00:00:03]} 55. h6 {[%clk 00:00:16]} {[%emt 00:00:02]}
Rh2 {[%clk 00:00:49]} {[%emt 00:00:02]} 56. h7 {[%clk 00:00:17]} Rh6 {[%clk
00:00:49]} {[%emt 00:00:01]} 57. Rxb4 {[%clk 00:00:17]} {[%emt 00:00:03]} Kc5
{[%clk 00:00:50]} 58. Rb8 {[%clk 00:00:17]} {[%emt 00:00:01]} e4 {[%clk
00:00:51]} {[%emt 00:00:02]} 59. Bxe4 {[%clk 00:00:13]} {[%emt 00:00:04]} Kd6
{[%clk 00:00:52]} {[%emt 00:00:02]} 60. Rb6+ {[%clk 00:00:13]} {[%emt
00:00:03]} Ke5 {[%clk 00:00:53]} 61. f4# {[%clk 00:00:11]} {[%emt 00:00:03]}
1-0

[ePGN "0.1;DGT LiveChess/2.2.7"]

[Event "Blixt-SM 2025"]
[Site "Norrköping, Sweden"]
[Date "2025.09.26"]
[Round "11.1"]
[White "Grahn, Vidar"]
[Black "Seo, Jung Min"]
[Result "0-1"]
[TimeControl "3 min + 2 sec/move"]
[WhiteTitle "FM"]
[BlackTitle "IM"]
[WhiteElo "2236"]
[BlackElo "2480"]

1. d4 {[%clk 00:03:02]} {[%emt 00:00:01]} d5 {[%clk 00:03:03]} {[%emt
00:00:01]} 2. c4 {[%clk 00:03:03]} c6 {[%clk 00:03:04]} 3. Nf3 {[%clk
00:03:04]} {[%emt 00:00:02]} Nf6 {[%clk 00:03:05]} {[%emt 00:00:01]} 4. g3
{[%clk 00:03:05]} e6 {[%clk 00:03:01]} {[%emt 00:00:07]} 5. Bg2 {[%clk
00:03:06]} {[%emt 00:00:01]} Nbd7 {[%clk 00:02:57]} {[%emt 00:00:05]} 6. O-O
{[%clk 00:03:04]} {[%emt 00:00:04]} Be7 {[%clk 00:02:53]} {[%emt 00:00:06]} 7.
Nc3 {[%clk 00:02:59]} {[%emt 00:00:07]} dxc4 {[%clk 00:02:46]} {[%emt
00:00:08]} 8. e4 {[%clk 00:03:01]} O-O {[%clk 00:02:47]} {[%emt 00:00:01]} 9.
Qe2 {[%clk 00:02:57]} {[%emt 00:00:06]} b5 {[%clk 00:02:48]} {[%emt 00:00:01]}
10. Bf4 {[%clk 00:02:55]} {[%emt 00:00:03]} a5 {[%clk 00:02:34]} {[%emt
00:00:16]} 11. Rad1 {[%clk 00:02:55]} {[%emt 00:00:02]} b4 {[%clk 00:02:30]}
{[%emt 00:00:07]} 12. Nb1 {[%clk 00:02:44]} {[%emt 00:00:12]} Ba6 {[%clk
00:02:31]} {[%emt 00:00:01]} 13. Rfe1 {[%clk 00:02:45]} c3 {[%clk 00:02:16]}
{[%emt 00:00:17]} 14. Qc2 {[%clk 00:02:46]} {[%emt 00:00:01]} cxb2 {[%clk
00:02:13]} {[%emt 00:00:05]} 15. Qxb2 {[%clk 00:02:41]} {[%emt 00:00:07]} Qb6
{[%clk 00:02:05]} {[%emt 00:00:10]} 16. d5 {[%clk 00:02:28]} {[%emt 00:00:15]}
cxd5 {[%clk 00:01:19]} {[%emt 00:00:49]} 17. exd5 {[%clk 00:02:30]} Bc5 {[%clk
00:01:09]} {[%emt 00:00:12]} 18. dxe6 {[%clk 00:02:30]} {[%emt 00:00:01]} fxe6
{[%clk 00:01:11]} 19. Ng5 {[%clk 00:02:30]} {[%emt 00:00:01]} Rae8 {[%clk
00:01:11]} {[%emt 00:00:01]} 20. Qc2 {[%clk 00:02:16]} {[%emt 00:00:15]} h6
{[%clk 00:00:58]} {[%emt 00:00:16]} 21. Ne4 {[%clk 00:02:07]} {[%emt 00:00:11]}
Nxe4 {[%clk 00:00:55]} {[%emt 00:00:05]} 22. Bxe4 {[%clk 00:02:03]} {[%emt
00:00:05]} Nf6 {[%clk 00:00:53]} {[%emt 00:00:04]} 23. Bg6 {[%clk 00:01:53]}
{[%emt 00:00:12]} Ng4 {[%clk 00:00:30]} {[%emt 00:00:25]} 24. Bxe8 {[%clk
00:01:25]} {[%emt 00:00:31]} Nxf2 {[%clk 00:00:09]} {[%emt 00:00:22]} 25. Bh5
{[%clk 00:00:25]} {[%emt 00:01:02]} Nxd1+ {[%clk 00:00:09]} {[%emt 00:00:02]}
26. Kg2 {[%clk 00:00:26]} Ne3+ {[%clk 00:00:08]} {[%emt 00:00:04]} 27. Bxe3
{[%clk 00:00:27]} Bxe3 {[%clk 00:00:09]} 28. Bf3 {[%clk 00:00:23]} {[%emt
00:00:05]} Bd4 {[%clk 00:00:04]} {[%emt 00:00:07]} 29. Qe4 {[%clk 00:00:20]}
{[%emt 00:00:05]} e5 {[%clk 00:00:05]} {[%emt 00:00:02]} 30. Nd2 {[%clk
00:00:19]} {[%emt 00:00:02]} Bc3 {[%clk 00:00:05]} {[%emt 00:00:02]} 31. Nc4
{[%clk 00:00:17]} {[%emt 00:00:04]} Qd4 {[%clk 00:00:05]} {[%emt 00:00:02]} 32.
Nxe5 {[%clk 00:00:11]} {[%emt 00:00:08]} Qxe4 {[%clk 00:00:04]} {[%emt
00:00:03]} 33. Rxe4 {[%clk 00:00:10]} {[%emt 00:00:03]} Bb7 {[%clk 00:00:05]}
34. Re3 {[%clk 00:00:06]} {[%emt 00:00:06]} Bxf3+ {[%clk 00:00:04]} {[%emt
00:00:04]} 35. Nxf3 {[%clk 00:00:06]} {[%emt 00:00:01]} Rd8 {[%clk 00:00:05]}
36. Re7 {[%clk 00:00:06]} {[%emt 00:00:03]} Bf6 {[%clk 00:00:05]} {[%emt
00:00:02]} 37. Ra7 {[%clk 00:00:07]} Rd5 {[%clk 00:00:06]} 38. Kf2 {[%clk
00:00:08]} {[%emt 00:00:02]} Rc5 {[%clk 00:00:06]} {[%emt 00:00:02]} 39. Ke3
{[%clk 00:00:06]} {[%emt 00:00:04]} Rc3+ {[%clk 00:00:07]} 40. Ke4 {[%clk
00:00:07]} Ra3 {[%clk 00:00:08]} 41. Nd2 {[%clk 00:00:04]} {[%emt 00:00:06]}
Rxa2 {[%clk 00:00:08]} {[%emt 00:00:02]} 42. Nc4 {[%clk 00:00:05]} Rxh2 {[%clk
00:00:06]} {[%emt 00:00:04]} 43. Nxa5 {[%clk 00:00:03]} {[%emt 00:00:04]} Ra2
{[%emt 00:00:09]} 0-1

[Event "Blixt-SM 2025"]
[Site "Norrköping, Sweden"]
[Date "2025.09.26"]
[Round "1.6"]
[White "Johnson, Daniel"]
[Black "Stenman, Christoffer"]
[Result "1-0"]
[TimeControl "3 min + 2 sec/move"]
[WhiteElo "2177"]
[BlackElo "2004"]

1. d4 {[%clk 00:03:01]} {[%emt 00:00:02]} d5 {[%clk 00:03:04]} {[%emt
00:00:01]} 2. Bf4 {[%clk 00:03:01]} {[%emt 00:00:02]} Nf6 {[%clk 00:03:04]}
{[%emt 00:00:02]} 3. e3 {[%clk 00:03:02]} c5 {[%clk 00:03:04]} {[%emt
00:00:02]} 4. Nc3 {[%clk 00:03:01]} {[%emt 00:00:02]} cxd4 {[%clk 00:02:55]}
{[%emt 00:00:12]} 5. exd4 {[%clk 00:03:01]} {[%emt 00:00:01]} a6 {[%clk
00:02:53]} {[%emt 00:00:05]} 6. Nf3 {[%clk 00:03:00]} {[%emt 00:00:02]} e6
{[%clk 00:02:45]} {[%emt 00:00:11]} 7. Ne5 {[%clk 00:02:44]} {[%emt 00:00:18]}
Be7 {[%clk 00:02:33]} {[%emt 00:00:14]} 8. a3 {[%clk 00:02:35]} {[%emt
00:00:11]} Nc6 {[%clk 00:02:31]} {[%emt 00:00:04]} 9. g3 {[%clk 00:02:21]}
{[%emt 00:00:16]} O-O {[%clk 00:02:17]} {[%emt 00:00:17]} 10. Bg2 {[%clk
00:02:21]} Qb6 {[%clk 00:02:10]} {[%emt 00:00:09]} 11. Nxc6 {[%clk 00:01:48]}
{[%emt 00:00:35]} bxc6 {[%clk 00:02:04]} {[%emt 00:00:08]} 12. Rb1 {[%clk
00:01:47]} {[%emt 00:00:03]} a5 {[%clk 00:01:57]} {[%emt 00:00:09]} 13. O-O
{[%clk 00:01:46]} {[%emt 00:00:03]} Ba6 {[%clk 00:01:50]} {[%emt 00:00:10]} 14.
Re1 {[%clk 00:01:46]} {[%emt 00:00:01]} Rac8 {[%clk 00:01:47]} {[%emt
00:00:04]} 15. b4 {[%clk 00:01:28]} {[%emt 00:00:21]} axb4 {[%clk 00:01:36]}
{[%emt 00:00:14]} 16. axb4 {[%clk 00:01:28]} {[%emt 00:00:02]} Bc4 {[%clk
00:01:36]} {[%emt 00:00:02]} 17. Na4 {[%clk 00:01:24]} {[%emt 00:00:06]} Qa7
{[%clk 00:01:01]} {[%emt 00:00:37]} 18. Nc5 {[%clk 00:01:21]} {[%emt 00:00:04]}
g6 {[%clk 00:00:39]} {[%emt 00:00:25]} 19. Qd2 {[%clk 00:01:09]} {[%emt
00:00:15]} Nh5 {[%clk 00:00:37]} {[%emt 00:00:03]} 20. Bh6 {[%clk 00:01:09]}
{[%emt 00:00:02]} Rfd8 {[%clk 00:00:37]} {[%emt 00:00:02]} 21. Bf3 {[%clk
00:01:08]} {[%emt 00:00:02]} Nf6 {[%clk 00:00:36]} {[%emt 00:00:04]} 22. Bg5
{[%clk 00:01:07]} {[%emt 00:00:03]} Ne8 {[%clk 00:00:34]} {[%emt 00:00:04]} 23.
Ra1 {[%clk 00:01:02]} {[%emt 00:00:07]} Qc7 {[%clk 00:00:34]} {[%emt 00:00:02]}
24. h4 {[%clk 00:00:53]} {[%emt 00:00:10]} Nd6 {[%clk 00:00:32]} {[%emt
00:00:05]} 25. Bf4 {[%clk 00:00:49]} {[%emt 00:00:06]} Qb6 {[%clk 00:00:26]}
{[%emt 00:00:09]} 26. h5 {[%clk 00:00:42]} {[%emt 00:00:08]} Nb5 {[%clk
00:00:20]} {[%emt 00:00:08]} 27. Ra6 {[%clk 00:00:37]} {[%emt 00:00:07]} Bxc5
{[%clk 00:00:19]} {[%emt 00:00:04]} 28. Rxb6 {[%clk 00:00:38]} {[%emt
00:00:01]} Bxb6 {[%clk 00:00:20]} {[%emt 00:00:02]} 29. Be5 {[%clk 00:00:38]}
{[%emt 00:00:01]} Nd6 {[%clk 00:00:18]} {[%emt 00:00:04]} 30. hxg6 {[%clk
00:00:29]} {[%emt 00:00:11]} fxg6 {[%clk 00:00:17]} {[%emt 00:00:03]} 31. Qh6
{[%clk 00:00:21]} {[%emt 00:00:09]} Rd7 {[%clk 00:00:12]} {[%emt 00:00:08]} 32.
Qg5 {[%clk 00:00:11]} {[%emt 00:00:12]} Nf5 {[%clk 00:00:12]} {[%emt 00:00:02]}
33. Qf6 {[%clk 00:00:10]} {[%emt 00:00:03]} Rg7 {[%clk 00:00:11]} {[%emt
00:00:03]} 34. Qxe6+ {[%clk 00:00:09]} {[%emt 00:00:03]} Rf7 {[%clk 00:00:09]}
{[%emt 00:00:04]} 35. Qxc8+ {[%clk 00:00:09]} {[%emt 00:00:01]} Rf8 {[%clk
00:00:11]} 36. Qe6+ {[%clk 00:00:10]} Rf7 {[%clk 00:00:12]} {[%emt 00:00:01]}
37. c3 {[%clk 00:00:06]} {[%emt 00:00:05]} Bd8 {[%clk 00:00:06]} {[%emt
00:00:08]} 38. Qxc6 {[%clk 00:00:07]} {[%emt 00:00:02]} Bg5 {[%clk 00:00:07]}
{[%emt 00:00:02]} 39. Bxd5 {[%clk 00:00:07]} {[%emt 00:00:02]} Bxd5 {[%clk
00:00:07]} 40. Qxd5 {[%clk 00:00:08]} Ne7 {[%clk 00:00:09]} 41. Qe6 {[%clk
00:00:09]} Kf8 {[%clk 00:00:08]} {[%emt 00:00:02]} 1-0

[Event "Blixt-SM 2025"]
[Site "Norrköping, Sweden"]
[Date "2025.09.26"]
[Round "3.2"]
[White "Karlsson, Stefan 2005"]
[Black "Religa, Marek"]
[Result "0-1"]
[TimeControl "3 min + 2 sec/move"]
[WhiteElo "2112"]
[BlackElo "2207"]

1. d3 {[%clk 00:02:59]} {[%emt 00:00:03]} g6 {[%clk 00:03:04]} {[%emt
00:00:02]} 2. g3 Bg7 3. Bg2 {[%clk 00:03:01]} {[%emt 00:00:01]} d6 {[%clk
00:03:06]} 4. e4 {[%clk 00:03:00]} {[%emt 00:00:03]} c5 {[%clk 00:03:07]} 5.
Nd2 {[%clk 00:03:01]} {[%emt 00:00:01]} Nc6 {[%clk 00:03:09]} {[%emt 00:00:01]}
6. Nh3 {[%clk 00:03:01]} {[%emt 00:00:02]} Bd7 {[%clk 00:03:09]} {[%emt
00:00:01]} 7. f3 {[%clk 00:02:47]} {[%emt 00:00:15]} h5 {[%clk 00:03:06]}
{[%emt 00:00:05]} 8. O-O {[%clk 00:02:46]} {[%emt 00:00:03]} b5 {[%clk
00:03:02]} {[%emt 00:00:07]} 9. f4 {[%clk 00:02:37]} {[%emt 00:00:12]} Nf6
{[%clk 00:02:55]} {[%emt 00:00:09]} 10. Nf2 {[%clk 00:02:35]} {[%emt 00:00:03]}
Ng4 {[%clk 00:02:54]} {[%emt 00:00:03]} 11. Nf3 {[%clk 00:02:33]} {[%emt
00:00:04]} Nd4 {[%clk 00:02:48]} {[%emt 00:00:08]} 12. c3 {[%clk 00:02:23]}
{[%emt 00:00:12]} Nxf3+ {[%clk 00:02:32]} {[%emt 00:00:18]} 13. Bxf3 {[%clk
00:02:23]} {[%emt 00:00:03]} Qc8 {[%clk 00:02:27]} {[%emt 00:00:07]} 14. Nxg4
{[%clk 00:02:15]} {[%emt 00:00:09]} hxg4 {[%clk 00:02:21]} {[%emt 00:00:08]} 15.
Bg2 {[%clk 00:02:10]} {[%emt 00:00:06]} b4 {[%clk 00:01:54]} {[%emt 00:00:30]}
16. Bd2 {[%clk 00:01:47]} {[%emt 00:00:24]} Qa6 {[%clk 00:01:51]} {[%emt
00:00:06]} 17. Qe2 {[%clk 00:01:35]} {[%emt 00:00:13]} Bb5 {[%clk 00:01:40]}
{[%emt 00:00:14]} 18. c4 {[%clk 00:01:25]} {[%emt 00:00:12]} Bd7 {[%clk
00:01:41]} 19. e5 {[%clk 00:01:24]} {[%emt 00:00:03]} Rd8 {[%clk 00:01:26]}
{[%emt 00:00:18]} 20. a3 {[%clk 00:01:03]} {[%emt 00:00:22]} dxe5 {[%clk
00:00:59]} {[%emt 00:00:29]} 21. axb4 {[%clk 00:00:55]} {[%emt 00:00:11]} Qe6
{[%clk 00:00:27]} {[%emt 00:00:33]} 22. Rxa7 {[%clk 00:00:36]} {[%emt
00:00:21]} exf4 {[%clk 00:00:25]} {[%emt 00:00:05]} 23. Qxe6 {[%clk 00:00:27]}
{[%emt 00:00:10]} Bxe6 {[%clk 00:00:26]} 24. Bc6+ {[%clk 00:00:17]} {[%emt
00:00:12]} Kf8 {[%clk 00:00:28]} 25. Bxf4 {[%clk 00:00:12]} {[%emt 00:00:06]}
cxb4 {[%emt 00:00:07]} 26. Rb7 {[%clk 00:00:10]} {[%emt 00:00:03]} Bxb2 {[%clk
00:00:19]} {[%emt 00:00:08]} 27. Rxb4 {[%clk 00:00:09]} {[%emt 00:00:02]} Bc3
{[%clk 00:00:16]} {[%emt 00:00:05]} 28. Rb3 {[%clk 00:00:08]} {[%emt 00:00:04]}
Bf6 {[%clk 00:00:09]} {[%emt 00:00:09]} 29. Rd1 {[%clk 00:00:06]} {[%emt
00:00:04]} Bxc4 {[%clk 00:00:08]} {[%emt 00:00:03]} 30. Rb8 {[%clk 00:00:04]}
{[%emt 00:00:02]} Rxb8 {[%clk 00:00:07]} {[%emt 00:00:04]} 31. Bxb8 {[%clk
00:00:06]} Be6 {[%clk 00:00:08]} 32. d4 {[%clk 00:00:06]} {[%emt 00:00:02]} Kg7
{[%clk 00:00:10]} {[%emt 00:00:01]} 33. d5 {[%clk 00:00:07]} Bf5 {[%clk
00:00:08]} {[%emt 00:00:03]} 34. Bf4 {[%clk 00:00:06]} {[%emt 00:00:03]} Be4
{[%clk 00:00:06]} {[%emt 00:00:04]} 35. Re1 {[%clk 00:00:06]} {[%emt 00:00:02]}
Bf3 {[%clk 00:00:07]} 36. Be3 {[%clk 00:00:03]} {[%emt 00:00:06]} Rb8 {[%clk
00:00:08]} {[%emt 00:00:01]} 0-1